Cogmind - Beta 16.1 @@@ ROGUE MODE // 2026.02.06 @ 04:17:44 // AFD2020/Player2 Player: cptwinky Result: Core destroyed Performance ------------- Evolutions (5) 2500 Regions Visited (13) 2600 Robots Destroyed (106) 530 Value Destroyed (4593) 4593 Prototype IDs (65) 1300 Alien Tech Used (1) 200 Bonus (7030) 7030 TOTAL SCORE: 18753 Bonus ------- High Alert Combat Kills 1773 Follower Combat Kills 4866 Entered Garrisons 200 Used RIF Installer 500 Aligned with FarCom 300 Met Data Miner 300 Friendly Fire -909 Cogmind --------- Core Integrity 0/1000 Matter 290/300 Energy 710/710 System Corruption 4% Temperature Cool (0) Movement Treading (160) Location -5/Factory Parts ------- > --- POWER (2) -------- F-cell Engine Reinforced Fission Core > --- PROPULSION (4) --- Enhanced Armored Heavy Treads Enhanced Armored Heavy Treads > --- UTILITY (8) ------ Advanced Heat Sink Advanced Coolant Injector Large Storage Unit Advanced Targeting Computer Improved Heavy Armor Plating Improved Hacking Suite System Restoration Module > --- WEAPON (4) ------- Precision Phase Gun Heavy Machine Gun Hypervelocity Railgun Hypervelocity Railgun > --- INVENTORY (15) --- Improved Heavy Treads High-capacity Matter Pod (28) Advanced Signal Interpreter Improved Heavy Armor Plating Splice Drone Bay (4/6) Heavy Ion Cannon Guided EMP Blaster (10) Mini Smartbomb Launcher Improved Datajack Remote Datajack Field Lobotomy Kit (5) Great Maul Peak State ------------ > --- POWER ------------ F-cell Engine Reinforced Fission Core > --- PROPULSION ------- Enhanced Armored Heavy Treads Enhanced Armored Heavy Treads > --- UTILITY ---------- Advanced Heat Sink Advanced Coolant Injector Large Storage Unit Advanced Targeting Computer Improved Heavy Armor Plating Experimental Thermal Defense Suite Improved Hacking Suite > --- WEAPON ----------- Precision Phase Gun Heavy Machine Gun Hypervelocity Railgun Hypervelocity Railgun > --- INVENTORY -------- Improved Heavy Treads High-capacity Matter Pod Advanced Signal Interpreter Improved Heavy Armor Plating Splice Drone Bay Heavy Ion Cannon Guided EMP Blaster Mini Smartbomb Launcher Improved Datajack Remote Datajack Field Lobotomy Kit Great Maul [Rating: 130] Favorites ----------- Power Improved Deuterium Engine Engine Improved Deuterium Engine Power Core Reinforced Fission Core Propulsion Improved Heavy Treads Treads Improved Heavy Treads Leg Aluminum Leg Utility Large Storage Unit Device Advanced Heat Sink Storage Large Storage Unit Processor Advanced Targeting Computer Hackware Hacking Suite Protection Improved Heavy Armor Plating Weapon Enhanced Autogun Energy Gun Pulse Rifle Ballistic Gun Enhanced Autogun Ballistic Cannon Light Cannon Launcher Rocket Launcher Special Weapon Remote Datajack Impact Weapon Great Maul Special Melee Weapon Datajack Build | -11 -10 -10 -10 -9 -8 -7 -7 -6 -6 -6 -6 -5 -5 ------- Run | Yrd Mat Min Exi Min Mat Fac Gar Fac Low Low Dat Pro Fac Slots Evolved 10 | . . . . . 4 2 . 2 . . . . 2 Power 1 | . . . . . . . . . . . . . 1 Propulsion 2 | . . . . . 1 1 . . . . . . . Utility 6 | . . . . . 2 1 . 2 . . . . 1 Weapon 1 | . . . . . 1 . . . . . . . . Parts Attached 83 | 7 . 1 3 3 18 1 10 12 6 . 1 8 13 Power 9 | 2 . . . . 3 . 1 1 1 . . 1 . Engine 8 | 2 . . . . 3 . 1 1 1 . . . . Core 1 | . . . . . . . . . . . . 1 . Reactor . | . . . . . . . . . . . . . . Propulsion 15 | 2 . . . . 3 1 6 . . . . 1 2 Treads 5 | . . . . . . . 2 . . . . 1 2 Leg 10 | 2 . . . . 3 1 4 . . . . . . Wheel . | . . . . . . . . . . . . . . Hover . | . . . . . . . . . . . . . . Flight . | . . . . . . . . . . . . . . Utility 30 | 1 . 1 1 1 6 . 2 7 4 . . 2 5 Device 10 | . . . . 1 1 . . 2 3 . . . 3 Storage 3 | 1 . . 1 . 1 . . . . . . . . Processor 3 | . . . . . 1 . 1 1 . . . . . Hackware 6 | . . . . . 1 . 1 2 1 . . 1 . Protection 8 | . . 1 . . 2 . . 2 . . . 1 2 Artifact . | . . . . . . . . . . . . . . Weapon 29 | 2 . . 2 2 6 . 1 4 1 . 1 4 6 Energy Gun 4 | . . . . . 1 . . 1 . . . . 2 Energy Cannon . | . . . . . . . . . . . . . . Ballistic Gun 15 | 2 . . 1 . 3 . 1 3 1 . . 2 2 Ballistic Cannon 2 | . . . . 1 1 . . . . . . . . Launcher 4 | . . . . 1 . . . . . . . 2 1 Special Weapon 1 | . . . . . . . . . . . . . 1 Impact Weapon 1 | . . . . . 1 . . . . . . . . Slashing Weapon . | . . . . . . . . . . . . . . Piercing Weapon . | . . . . . . . . . . . . . . Special Melee Weapon 2 | . . . 1 . . . . . . . 1 . . Unidentified Prototypes 11 | . . . . 1 2 . . . 1 1 . 2 4 Corrupted Parts 2 | . . . . . . . . . . . . 2 . System Corruption 13 | . . . . . . . . . . . . 13 . Parts Lost 6 | . . . . . . . 2 1 . . . . 3 Power 1 | . . . . . . . 1 . . . . . . Propulsion 1 | . . . . . . . . . . . . . 1 Utility 3 | . . . . . . . . 1 . . . . 2 Weapon 1 | . . . . . . . 1 . . . . . . Highest Loss Streak 2 | . . . . . . . 1 1 . . . . 2 To Critical Strikes 1 | . . . . . . . . . . . . . 1 Average Backups 12 | 2 5 8 8 10 13 13 14 13 13 14 14 12 11 Power . | . . . . 1 1 1 . 1 1 1 1 . . Propulsion 1 | 2 1 2 1 1 2 1 1 . 1 1 1 1 . Utility 3 | . 1 1 1 3 2 3 4 5 4 4 4 3 3 Weapon 4 | . 2 3 4 2 4 6 5 4 4 5 5 3 4 Tool/Special . | . . . . . . . . . . . . . . Unused Backups 22 | . 5 1 1 1 4 . 1 . 1 . . 2 6 Power 1 | . . . . . 1 . . . . . . . . Propulsion 6 | . 2 . 1 . 1 . 1 . . . . . 1 Utility 7 | . . 1 . 1 . . . . 1 . . 1 3 Weapon 7 | . 3 . . . 2 . . . . . . 1 1 Tool/Special 1 | . . . . . . . . . . . . . 1 Average Slot Usage (%) 84 | . 85 95 100 100 93 99 91 78 79 79 59 81 83 Engine 7 | . 14 14 14 14 9 7 6 6 6 6 6 5 5 Treads 8 | . . . . . . . 6 13 13 12 12 12 11 Leg 9 | . 28 28 28 28 27 30 17 . . . . . . Device 5 | . . . . . 1 . . 4 8 12 12 12 11 Storage 7 | . 14 14 14 14 9 7 7 6 6 6 6 6 5 Processor 5 | . . . . . 7 7 7 9 6 6 6 6 5 Hackware 6 | . . . . . 6 7 9 8 10 6 6 7 9 Protection 7 | . . 9 14 13 6 14 10 5 6 6 6 6 5 Ballistic Gun 20 | . 28 28 21 23 18 23 21 18 12 19 3 22 20 Peak Build Rating 130 | 6 7 8 9 16 34 36 62 72 81 82 81 87 130 Average Rating 57 | 4 6 7 8 9 25 35 49 66 73 80 70 83 101 On Entrance 40 | . 6 7 8 9 10 30 36 57 71 81 81 81 84 Avg Prop Armor Cover (%) 8 | . . . . . . . 8 . . . . . . Naked Turns . | . . . . . . . . . . . . . . Heaviest Build 107 | 11 11 12 18 26 38 40 45 62 67 69 62 74 107 Greatest Support 160 | 20 20 20 20 20 35 50 150 150 150 150 150 150 160 Greatest Overweight (x) 1 | . . . . 1 1 . . . . . . . . Average Overweight (x) . | . . . . . . . . . . . . . . Largest Inventory Capacity 15 | 8 8 8 10 10 15 15 15 15 15 15 15 15 15 Average Capacity 13 | 6 8 8 9 10 14 15 15 15 15 15 15 15 15 Most Carried 15 | 5 8 8 10 10 15 15 15 15 15 15 15 15 15 Average Carried 13 | 2 5 7 8 9 13 13 14 14 14 15 14 14 14 Final Capacity 15 | 8 8 8 10 10 15 15 15 15 15 15 15 15 15 Final Carried 15 | 5 8 8 10 10 15 15 15 15 15 15 15 15 15 Class Distribution -------------------- 38% | Scavenger-Tank 27% | Tank 23% | Mutant 6% | Skirmisher Dominant Class ---------------- Mutant | -10/Materials Mutant | -10/Mines Mutant | -10/Exiles Mutant | -9/Mines Skirmisher | -8/Materials Scavenger-Tank | -7/Factory Scavenger-Tank | -7/Garrison Scavenger-Tank | -6/Factory Scavenger-Tank | -6/Lower Caves Tank | -6/Lower Caves Mutant | -6/Data Miner Tank | -5/Proximity Caves Scavenger-Tank | -5/Factory Resources | -11 -10 -10 -10 -9 -8 -7 -7 -6 -6 -6 -6 -5 -5 ----------- Run | Yrd Mat Min Exi Min Mat Fac Gar Fac Low Low Dat Pro Fac Matter Collected 5304 | 165 41 84 88 27 584 . 815 893 235 217 . 953 1202 Remotely . | . . . . . . . . . . . . . . Salvage Created 4707 | . 96 34 . 16 629 . 942 1633 99 205 . 224 829 Parts 228 | . 11 4 . 8 31 . 45 68 4 10 . 7 40 Haulers Intercepted 3 | . . . . . 2 . . 1 . . . . . Recyclers Shooed 5 | . . . . . . . . 5 . . . . . Parts Field Recycled . | . . . . . . . . . . . . . . Retrieved Matter . | . . . . . . . . . . . . . . Parts Self-Destructed 35 | . . . . . . . . . 9 7 . 19 . Prevented 43 | . . . . . . . . . 10 8 . 25 . Parts Restored . | . . . . . . . . . . . . . . Kills | -11 -10 -10 -10 -9 -8 -7 -7 -6 -6 -6 -6 -5 -5 ------- Run | Yrd Mat Min Exi Min Mat Fac Gar Fac Low Low Dat Pro Fac Combat Hostiles Destroyed 84 | . 3 2 . 3 11 . 17 21 2 2 . 5 18 Melee 2 | . . . . . . . . 1 . . . . 1 Guns 48 | . 3 2 . . 2 . 11 10 1 2 . 4 13 Cannons 2 | . . . . . 2 . . . . . . . . AOE 30 | . . . . 3 7 . 5 9 1 . . 1 4 Classes Destroyed 22 | . 3 . . . 9 . 3 3 1 2 . . 1 Worker 3 | . . . . . 1 . . 2 . . . . . Builder 7 | . . . . . 3 . . 3 . . . . 1 Hauler 3 | . . . . . 2 . . 1 . . . . . Recycler 4 | . . . . . 1 . . 3 . . . . . Mechanic 1 | . . . . . 1 . . . . . . . . Operator 2 | . 1 . . . . . . . . . . . 1 Watcher 1 | . . . . . 1 . . . . . . . . Swarmer 17 | . 2 2 . 3 . . 3 1 1 . . 1 4 Cutter 3 | . . . . . . . 3 . . . . . . Saboteur 1 | . . . . . . . . . . . . . 1 Grunt 31 | . 1 . . . 7 . 6 11 . . . 3 3 Brawler 5 | . . . . . 2 . . 2 . 1 . . . Duelist 4 | . . . . . 1 . . 2 . . . . 1 Protector 1 | . . . . . 1 . . . . . . . . Researcher 1 | . . . . . . . . . . 1 . . . Sentry 7 | . . . . . . . 4 1 . . . . 2 Demolisher 2 | . . . . . . . . 1 . . . 1 . Specialist 3 | . . . . . . . 1 . . . . . 2 Hunter 3 | . . . . . . . . 2 . . . . 1 Programmer 5 | . . . . . . . . . . 1 . . 4 Behemoth 1 | . . . . . . . . . 1 . . . . Assembled 2 | . . . . . . . . 2 . . . . . Butcher 1 | . . . . . . . . . . 1 . . . Best Kill Streak 8 | . 2 2 . 3 8 . 6 5 1 1 . 2 4 Combat Bots Only 6 | . 2 2 . 3 6 . 6 5 1 1 . 2 4 Max Kills in Single Turn 4 | . 1 1 . 3 3 . 3 3 1 1 . 1 4 Gunslinging 1 | . . . . . . . . . . . . . 1 Exploded 4 | . . . . 3 2 . 3 2 1 . . 1 4 Melee 1 | . . . . . . . . 1 . . . . 1 Uniques/NPCs Destroyed . | . . . . . . . . . . . . . . Combat | -11 -10 -10 -10 -9 -8 -7 -7 -6 -6 -6 -6 -5 -5 -------- Run | Yrd Mat Min Exi Min Mat Fac Gar Fac Low Low Dat Pro Fac Hostile Shots Fired 525 | . 8 7 . . 24 . 143 89 27 17 . 45 165 Missed 183 | . 1 4 . . 7 . 63 26 14 6 . 14 48 Hits 342 | . 7 3 . . 17 . 80 63 13 11 . 31 117 Melee 21 | . . . . . 1 . . 3 . . . 1 16 Projectile 321 | . 7 3 . . 16 . 80 60 13 11 . 30 101 AOE 10 | . . . . . . . 1 1 . . . 8 . Critical Strikes 18 | . . . . . 3 . 1 3 . . . 1 10 Damage Taken 5758 | . 67 23 . 12 365 . 811 1182 267 90 . 800 2141 Core 432 | . 10 15 . . 61 . 78 27 27 20 . 22 172 Absorbed by Shields 577 | . . . . . . . . 115 73 36 . 291 62 Redirected to Shielding 82 | . . . . 3 16 . . 63 . . . . . Ignored by Resistances 431 | . . . . . . . . . . . . . 431 Core Remaining (%) 81 | 100 . . . 90 77 . 81 . . . . 57 . Volleys Fired 278 | . 13 3 . 1 36 . 51 67 4 15 . 29 59 Largest 4 | . 2 2 . 1 3 . 3 3 3 3 . 4 4 Hottest 204 | . 40 40 . 33 115 . 73 73 113 80 . 110 204 Shots Fired 800 | . 26 6 . 1 80 . 140 175 11 45 . 108 208 Gun 736 | . 26 6 . . 42 . 138 163 10 45 . 106 200 Cannon 31 | . . . . . 31 . . . . . . . . Launcher 26 | . . . . 1 7 . 2 12 1 . . 2 1 Special 7 | . . . . . . . . . . . . . 7 Kinetic 733 | . 26 6 . . 70 . 138 163 7 45 . 106 172 Thermal 34 | . . . . . 3 . . . 3 . . . 28 Explosive 26 | . . . . 1 7 . 2 12 1 . . 2 1 Electromagnetic . | . . . . . . . . . . . . . . Robot Hit Streak 45 | . 9 1 . . 12 . 17 45 8 7 . 10 18 Robot Miss Streak 7 | . 2 3 . . 4 . 2 7 1 3 . 4 2 Penetration Max 1 | . . . . . . . . . . . . 1 1 Secondary Targets 11 | . . 1 . . . . 1 1 . 1 . . 7 Max Gunslinging Chain 2 | . . 1 . . . . 1 1 . 1 . . 2 Shots Hit Robots 590 | . 18 2 4 . 56 . 116 137 9 27 1 72 148 Core Hits 308 | . 8 3 . 3 46 . 49 96 4 10 . 34 55 Critical Kills 7 | . . . . . . . 1 1 . . . 1 4 Critical Parts Destroyed 17 | . 1 . . . 1 . 2 . . . . . 13 Critical Strikes 31 | . 1 . . . 2 . 3 1 . . . 1 23 Burn 4 | . . . . . . . . . . . . . 4 Destroy 22 | . 1 . . . . . 1 . . . . 1 19 Blast 1 | . . . . . 1 . . . . . . . . Smash 4 | . . . . . 1 . 2 1 . . . . . Melee Attacks 58 | . . . 4 . 4 . 15 12 . 3 1 16 3 Impact 46 | . . . . . 4 . 11 9 . 3 . 16 3 Slashing . | . . . . . . . . . . . . . . Piercing . | . . . . . . . . . . . . . . Sneak Attacks 15 | . . . 4 . 2 . 5 3 . . 1 . . Combat Hostiles . | . . . . . . . . . . . . . . Follow-up Attacks . | . . . . . . . . . . . . . . Damage Inflicted 14396 | . 205 40 . 154 2159 . 2427 4100 207 534 . 1783 2787 Guns 8999 | . 196 23 . . 492 . 1764 1873 151 534 . 1453 2513 Cannons 335 | . . . . . 335 . . . . . . . . Explosions 3907 | . . . . 148 1161 . 345 1610 56 . . 330 257 Melee 1024 | . . . . . 164 . 318 542 . . . . . Ramming 131 | . 9 17 . 6 7 . . 75 . . . . 17 Kinetic 8507 | . 196 23 . . 785 . 1764 1873 92 534 . 1453 1787 Thermal 884 | . . . . . 42 . . 57 59 . . . 726 Explosive 3850 | . . . . 148 1161 . 345 1553 56 . . 330 257 Electromagnetic . | . . . . . . . . . . . . . . Impact 1024 | . . . . . 164 . 318 542 . . . . . Slashing . | . . . . . . . . . . . . . . Piercing . | . . . . . . . . . . . . . . Highest Corruption 15 | . . . . . 2 . . 2 2 2 2 15 5 Average Corruption 1 | . . . . . 1 . . 1 1 2 2 2 2 Corruption Purged 5 | . . . . . 2 . . . 2 . . . 1 Corruption Blocked . | . . . . . . . . . . . . . . Effects 76 | . . . . . 4 . . 8 9 14 1 21 19 Message Errors 20 | . . . . . . . . 2 4 9 1 2 2 Matter Fused 16 | . . . . . 1 . . 1 1 1 . 7 5 Heat Flow Errors 10 | . . . . . . . . 1 2 1 . 3 3 Energy Discharges 9 | . . . . . 1 . . 1 . 2 . 3 2 Parts Rejected 2 | . . . . . . . . . . . . . 2 Data Loss (minor) 5 | . . . . . . . . 2 . 1 . 2 . Data Loss (major) 4 | . . . . . . . . 1 1 . . 1 1 Misfires 4 | . . . . . 1 . . . 1 . . 2 . Alerts 1 | . . . . . . . . . . . . . 1 Weapon Failures 5 | . . . . . 1 . . . . . . 1 3 Overload Shots . | . . . . . . . . . . . . . . Overflow Damage 367 | . . . . . 76 . 93 181 . . . . 17 Projectiles . | . . . . . . . . . . . . . . Explosions 44 | . . . . . . . . 27 . . . . 17 Melee 323 | . . . . . 76 . 93 154 . . . . . Knockbacks 3 | . . . . . 2 . . 1 . . . . . Impact 1 | . . . . . . . . 1 . . . . . Kinetic 2 | . . . . . 2 . . . . . . . . Secondary . | . . . . . . . . . . . . . . Self-Inflicted Damage 81 | . . . . 12 60 . . 9 . . . . . Shots 5 | . . . . 1 3 . . 1 . . . . . Rammed 13 | . . . . . . . . 11 . . . . 2 Targets Rammed 25 | . 4 3 . 2 3 . . 11 . . . . 2 Kicked 12 | . 4 3 . 2 3 . . . . . . . . Crushed . | . . . . . . . . . . . . . . Highest Temperature 356 | . 6 . . . 54 . 147 223 180 97 . 348 356 Average Temperature 64 | . 6 . . . 13 . 36 51 55 44 . 73 93 Received Heat Transfer 1696 | . 18 . . . 177 . 279 202 45 30 . 104 841 Effects 3 | . . . . . . . . . . . . 3 . Interference 3 | . . . . . . . . . . . . 3 . Siege Activations . | . . . . . . . . . . . . . . Martial Activations . | . . . . . . . . . . . . . . Shielding Activations . | . . . . . . . . . . . . . . Robots Disrupted . | . . . . . . . . . . . . . . Combat Hostiles . | . . . . . . . . . . . . . . Robots Corrupted 3 | . . . . . . . 1 2 . . . . . Combat Hostiles 3 | . . . . . . . 1 2 . . . . . Parts Fried 12 | . . . . . 4 . . 6 1 . . 1 . Impact Corruptions 11 | . . . . . 1 . 4 6 . . . . . Robots Melted . | . . . . . . . . . . . . . . Combat Hostiles . | . . . . . . . . . . . . . . Parts Melted 3 | . . . . . . . . 1 . . . . 2 Heat Transferred 1273 | . . . . . 74 . . 50 111 . . . 1038 Parts Sabotaged 1 | . . . . . . . . . . . . . 1 Parts Stolen . | . . . . . . . . . . . . . . Parts Stripped . | . . . . . . . . . . . . . . Power Chain Reactions . | . . . . . . . . . . . . . . Alert | -11 -10 -10 -10 -9 -8 -7 -7 -6 -6 -6 -6 -5 -5 ------- Run | Yrd Mat Min Exi Min Mat Fac Gar Fac Low Low Dat Pro Fac Maximum Alert Level 5 | . . . . . 3 1 4 5 . . . . 5 Low Security (%) 26 | 100 100 100 . 100 18 . . . . . . . 7 Level 1 11 | . . . . . 29 100 22 . . . . . 16 Level 2 12 | . . . . . 8 . 24 20 . . . . 8 Level 3 27 | . . . . . 44 . 44 40 . . . . 6 Level 4 17 | . . . . . . . 8 34 . . . . 37 Level 5 4 | . . . . . . . . 4 . . . . 23 High Security . | . . . . . . . . . . . . . . Max Security . | . . . . . . . . . . . . . . Peak Influence 2210 | . 114 50 . 139 793 336 1144 1610 . . . . 2210 Initial 600 | . . 6 . . . 336 215 600 . . . . 164 Average 692 | . 39 4 . 41 490 316 733 1055 . . . . 1112 Influence Increases 8485 | . 195 50 . 139 1187 12 1029 2034 223 150 . 623 2843 Destroy 0b10 Robot/C 4060 | . 80 40 . 60 560 . 600 1040 140 100 . 420 1020 Destroy 0b10 Robot/NC 400 | . 20 . . . 75 . 30 125 . . . 25 125 Destroy Leader 642 | . 24 . . 10 110 . 30 192 40 20 . 20 196 Allied During Kill 1437 | . 28 10 . 29 209 . 185 329 43 30 . 128 446 Successful Hack 133 | . 25 . . . . 12 6 54 . . . . 36 Disable Machine 510 | . . . . 30 45 . . 165 . . . . 270 Anti-Garrison Action 450 | . . . . . 150 . 150 . . . . . 150 Destroy Structure 688 | . 3 . . 10 38 . 28 69 . . . . 540 Lose Combat Pursuer 165 | . 15 . . . . . . 60 . . . 30 60 Influence Decreases 6302 | . 179 66 . 139 448 443 193 1586 1080 635 250 361 922 Entered New Map 2129 | . . 10 . . . 403 93 544 590 141 250 . 98 Time Decay 3283 | . 179 56 . 139 408 40 . 652 490 494 . 361 464 Lost Part 490 | . . . . . . . 20 220 . . . . 250 Lost Ally 250 | . . . . . 40 . 80 20 . . . . 110 Purge Threat 150 | . . . . . . . . 150 . . . . . Squads Dispatched 39 | . 1 . . . 6 1 . 14 . . . 1 16 Investigation 4 | . . . . . . 1 . . . . . . 3 Extermination 6 | . . . . . . . . 4 . . . . 2 Reinforcement 13 | . 1 . . . 2 . . 5 . . . . 5 Assault 10 | . . . . . 3 . . 2 . . . 1 4 Garrison 6 | . . . . . 1 . . 3 . . . . 2 Intercept . | . . . . . . . . . . . . . . Searches Triggered . | . . . . . . . . . . . . . . Data Miner Redirects 3 | . . . . . . . . . . . . . 3 Construction Impeded 4 | . . . . . . . . 2 . . . . 2 Haulers Reinforced 2 | . . . . . . . . 2 . . . . . Active Scanning Responses . | . . . . . . . . . . . . . . Cargo Convoy Interrupts 1 | . . . . . . . . . . . . . 1 Stealth | -11 -10 -10 -10 -9 -8 -7 -7 -6 -6 -6 -6 -5 -5 --------- Run | Yrd Mat Min Exi Min Mat Fac Gar Fac Low Low Dat Pro Fac Distress Signals 40 | . 1 . . . 1 . . 5 . . . 30 3 Communications Jammed . | . . . . . . . . . . . . . . Distress Signals . | . . . . . . . . . . . . . . Times Spotted 252 | . 10 2 . 2 37 . 28 81 7 5 . 28 52 Peak Tracking Total 10 | . 3 2 . 3 6 . 5 8 3 3 . 9 10 Tactical Retreats 11 | . 1 . . . . . . 4 . . . 2 4 Traps | -11 -10 -10 -10 -9 -8 -7 -7 -6 -6 -6 -6 -5 -5 ------- Run | Yrd Mat Min Exi Min Mat Fac Gar Fac Low Low Dat Pro Fac Traps Triggered 7 | . 1 . . . 1 . 4 1 . . . . . Indirectly . | . . . . . . . . . . . . . . Trap Hack Attempts . | . . . . . . . . . . . . . . Triggered . | . . . . . . . . . . . . . . Disarmed . | . . . . . . . . . . . . . . Reprogrammed . | . . . . . . . . . . . . . . Reused . | . . . . . . . . . . . . . . Traps Extracted . | . . . . . . . . . . . . . . Installed . | . . . . . . . . . . . . . . Triggered . | . . . . . . . . . . . . . . Most Traps Carried 2 | . . . . . . . . . 1 . . 2 . Machines | -11 -10 -10 -10 -9 -8 -7 -7 -6 -6 -6 -6 -5 -5 ---------- Run | Yrd Mat Min Exi Min Mat Fac Gar Fac Low Low Dat Pro Fac Machines Disabled 41 | . . . . 2 4 . 2 11 . . . 3 19 Max in Single Turn 2 | . . . . 2 1 . 1 1 . . . 1 1 Garrison Access 3 | . . . . . 1 . . 1 . . . . 1 Garrison Relay 1 | . . . . . . . 1 . . . . . . Machines Repaired . | . . . . . . . . . . . . . . Machines Dismantled . | . . . . . . . . . . . . . . Machines Sabotaged . | . . . . . . . . . . . . . . Overloaded Fab Kills . | . . . . . . . . . . . . . . Hacking | -11 -10 -10 -10 -9 -8 -7 -7 -6 -6 -6 -6 -5 -5 --------- Run | Yrd Mat Min Exi Min Mat Fac Gar Fac Low Low Dat Pro Fac Machines Accessed 32 | . 5 . 2 1 3 2 2 9 1 . 3 . 4 Terminals 13 | . 4 . . . 1 . 2 6 . . . . . Fabricators 3 | . . . . . . . . 1 . . . . 2 Repair Stations . | . . . . . . . . . . . . . . Recycling Units 2 | . 1 . . . . . . 1 . . . . . Scanalyzers 4 | . . . . . 1 1 . . . . . . 2 Garrison Access 3 | . . . . . 1 1 . 1 . . . . . Total Hacks 87 | . 8 . 2 1 9 4 5 22 1 . 23 . 12 Successful 57 | . 4 . 2 1 3 2 3 11 1 . 23 . 7 Failed 28 | . 3 . . . 5 2 2 11 . . . . 5 Catastrophic 3 | . 1 . . . . . . 1 . . . . 1 Database Lockouts 2 | . 1 . . . 1 . . . . . . . . Manual 18 | . 3 . 1 . 5 1 2 5 . . . . 1 Terminals 29 | . 7 . . . 4 . 5 13 . . . . . Fabricators 11 | . . . . . . . . 5 . . . . 6 Repair Stations . | . . . . . . . . . . . . . . Recycling Units 4 | . 1 . . . . . . 3 . . . . . Scanalyzers 9 | . . . . . 2 1 . . . . . . 6 Garrison Access 7 | . . . . . 3 3 . 1 . . . . . Terminal Hacks 36 | . 4 . 2 1 . . 2 3 1 . 23 . . Record 7 | . . . 1 . . . . . . . 6 . . Part Schematic 8 | . . . . . . . . . . . 8 . . Robot Schematic 6 | . . . . . . . . . . . 6 . . Robot Analysis 3 | . 3 . . . . . . . . . . . . Prototype ID Bank 4 | . 1 . . . . . . . . . 3 . . Open Door 3 | . . . . 1 . . 1 . 1 . . . . Branch Access Points 1 | . . . . . . . . 1 . . . . . Emergency Access Points 1 | . . . . . . . 1 . . . . . . Unreport Threat 1 | . . . . . . . . 1 . . . . . Zone Layout 1 | . . . . . . . . 1 . . . . . Proto ID Catalog 1 | . . . 1 . . . . . . . . . . Fabricator Hacks 5 | . . . . . . . . 2 . . . . 3 Network Status 2 | . . . . . . . . 1 . . . . 1 Build 3 | . . . . . . . . 1 . . . . 2 Repair Station Hacks . | . . . . . . . . . . . . . . Recycling Unit Hacks 1 | . . . . . . . . 1 . . . . . Retrieve Components 1 | . . . . . . . . 1 . . . . . Scanalyzer 6 | . . . . . 1 1 . . . . . . 4 Insert Component 2 | . . . . . . . . . . . . . 2 Analyze 1 | . . . . . . . . . . . . . 1 Retrieve Study 3 | . . . . . 1 1 . . . . . . 1 Garrison Access Hacks 3 | . . . . . 1 1 . 1 . . . . . Unlock Access 2 | . . . . . 1 1 . . . . . . . Seal Access 1 | . . . . . . . . 1 . . . . . Unauthorized Hacks 6 | . . . . . 1 . 1 4 . . . . . Terminals 3 | . . . . . 1 . 1 1 . . . . . Botnet 2 | . . . . . 1 . . 1 . . . . . Disrupt 1 | . . . . . . . 1 . . . . . . Fabricators 2 | . . . . . . . . 2 . . . . . Prioritize 1 | . . . . . . . . 1 . . . . . Haulers 1 | . . . . . . . . 1 . . . . . Repair Stations . | . . . . . . . . . . . . . . Recycling Units 1 | . . . . . . . . 1 . . . . . Reject 1 | . . . . . . . . 1 . . . . . Scanalyzers . | . . . . . . . . . . . . . . Garrison Access . | . . . . . . . . . . . . . . Data Cores Recovered 2 | . 1 . . . . . . . . . . . 1 Used . | . . . . . . . . . . . . . . Hacking Detections 22 | . 4 . . . 3 1 2 8 . . . . 4 Full Trace Events 4 | . . . . . . 1 . . . . . . 3 Feedback Events 1 | . . . . . . . . . . . . . 1 Corruption 1 | . . . . . . . . . . . . . 1 Feedback Blocked . | . . . . . . . . . . . . . . Robot Schematics Acquired 6 | . . . . . . . . . . . 6 . . Robots Built 3 | . . . . . . . . 3 . . . . . Authchips . | . . . . . . . . . . . . . . Time 134 | . . . . . . . . 134 . . . . . Total Robot Build Rating 12 | . . . . . . . . 12 . . . . . Part Schematics Acquired 9 | . . . . . . . . . . . 8 . 1 Parts Built 4 | . . . . . . . . . . . . . 4 Authchips . | . . . . . . . . . . . . . . Time 133 | . . . . . . . . . . . . . 133 Total Part Build Rating 34 | . . . . . . . . . . . . . 34 Part Studies Acquired 3 | . . . . . 1 1 . . . . . . 1 Parts Repaired . | . . . . . . . . . . . . . . Time . | . . . . . . . . . . . . . . Parts Recycled . | . . . . . . . . . . . . . . Recycled Matter . | . . . . . . . . . . . . . . Retrieved Matter . | . . . . . . . . . . . . . . Retrieved Components 9 | . . . . . . . . 9 . . . . . Parts Scanalyzed 1 | . . . . . . . . . . . . . 1 Part Schematics Acquired 1 | . . . . . . . . . . . . . 1 Parts Damaged . | . . . . . . . . . . . . . . Bothacking | -11 -10 -10 -10 -9 -8 -7 -7 -6 -6 -6 -6 -5 -5 ------------ Run | Yrd Mat Min Exi Min Mat Fac Gar Fac Low Low Dat Pro Fac Used RIF Installer 1 | . . . . . . . 1 . . . . . . Robots Hacked 11 | . . . 4 . . . 4 1 . . 1 . 1 Non-combat 5 | . . . 3 . . . . 1 . . . . 1 Combat 6 | . . . 1 . . . 4 . . . 1 . . Robot Hacks Applied 11 | . . . 4 . . . 4 1 . . 1 . 1 parse_system 5 | . . . 4 . . . . . . . 1 . . wipe_record 1 | . . . . . . . 1 . . . . . . reboot_system 2 | . . . . . . . 2 . . . . . . streamctrl_high 1 | . . . . . . . 1 . . . . . . formatsys_high 2 | . . . . . . . . 1 . . . . 1 Relay Couplers Released 9 | . . . . . 1 . 4 2 . . . . 2 Machine Destruction 9 | . . . . . 1 . 4 2 . . . . 2 Attached 4 | . . . . . . . 1 2 . . . 1 . Fabnet Peak Effective % . | . . . . . . . . . . . . . . Robots Rewired 7 | . . . . . . . 2 . . . . 3 2 Allies Hacked 1 | . . . . . . . . . . . . . 1 Hacks Repelled . | . . . . . . . . . . . . . . Allies | -11 -10 -10 -10 -9 -8 -7 -7 -6 -6 -6 -6 -5 -5 -------- Run | Yrd Mat Min Exi Min Mat Fac Gar Fac Low Low Dat Pro Fac Total Allies 22 | . 1 3 . . . . 4 5 . . . 5 4 Largest Group 4 | . 1 4 4 4 4 1 3 4 1 1 1 4 4 Highest-Rated Group 240 | . 57 97 97 97 100 88 134 202 118 118 118 229 240 Highest-Rated Ally 137 | . 57 57 57 57 82 88 91 117 118 118 118 122 137 Total Orders 5 | . . . . . . . . 2 . 1 . 2 . STAY 2 | . . . . . . . . 1 . . . 1 . FOLLOW 2 | . . . . . . . . 1 . . . 1 . RETURN 1 | . . . . . . . . . . 1 . . . Ally Attacks 389 | . 4 1 . . 77 . 33 102 10 5 . 36 121 Total Damage 23164 | . 168 . . . 1771 . 2182 6750 528 214 . 2376 9175 Kills 181 | . 4 . . . 24 . 13 55 5 3 . 21 56 Allies Corrupted 3 | . . . . . . . . 1 . . . . 2 Allies Melted . | . . . . . . . . . . . . . . Intel | -11 -10 -10 -10 -9 -8 -7 -7 -6 -6 -6 -6 -5 -5 ------- Run | Yrd Mat Min Exi Min Mat Fac Gar Fac Low Low Dat Pro Fac Active Infowar (turns) . | . . . . . . . . . . . . . . Robot Analysis Total 3 | . 3 . . . . . . . . . . . . Derelict Logs Recovered 7 | . . 1 . 1 . . . . 1 3 . 1 . Drone Launches 18 | . . . . . . . 1 3 2 1 . 7 4 Drone Recoveries 16 | . . . . . . . 1 3 2 1 . 5 4 Exploration | -11 -10 -10 -10 -9 -8 -7 -7 -6 -6 -6 -6 -5 -5 ------------- Run | Yrd Mat Min Exi Min Mat Fac Gar Fac Low Low Dat Pro Fac Turns Passed 12453 | 67 574 641 502 477 1059 99 1347 2413 1286 1310 155 1358 1165 Spaces Moved 6823 | 44 321 490 328 351 536 73 769 1073 759 770 92 719 498 Core 5 | 5 . . . . . . . . . . . . . Treads 4208 | . . . . . . . 297 1073 759 770 92 719 498 Legs 2610 | 39 321 490 328 351 536 73 472 . . . . . . Wheels . | . . . . . . . . . . . . . . Hover . | . . . . . . . . . . . . . . Flight . | . . . . . . . . . . . . . . Fastest Speed 50 | 50 120 120 120 120 120 112 97 160 160 160 160 160 160 Average Speed 145 | 112 120 120 120 120 142 112 124 160 160 160 160 160 160 Slowest Speed 190 | 120 120 120 120 190 190 112 160 160 160 160 160 160 160 Overloaded Moves . | . . . . . . . . . . . . . . Propulsion Burnouts . | . . . . . . . . . . . . . . Robots Hopped . | . . . . . . . . . . . . . . Potential Cave-ins . | . . . . . . . . . . . . . . Cave-ins Triggered . | . . . . . . . . . . . . . . Exploration Rate (%) 56 | 4 44 98 70 75 32 2 82 30 88 86 74 82 18 Regions Visited 13 Branch Regions 7 Pre-discovered Areas 4 | . . . 1 1 . . . . . . 1 1 . Known Exits Taken 3 | . . . . . 1 1 . 1 . . . . . Unknown Exits Taken 9 | 1 1 1 1 1 . . . . 1 1 1 1 . Scrap Searched 9 | . . 1 . 1 . . . . 2 2 . 3 . Spaces Dug 27 | . . . . . 2 . 16 . . 3 . 3 3 Terrain Destroyed 136 | . . . . 10 34 . 16 38 10 3 . 9 16 Melee 14 | . . . . . 2 . 3 . . 3 . 3 3 Projectile 5 | . . . . . . . . . . . . . 5 AOE 117 | . . . . 10 32 . 13 38 10 . . 6 8 Terrain Rammed . | . . . . . . . . . . . . . . Walls Destroyed . | . . . . . . . . . . . . . . Machines Disabled . | . . . . . . . . . . . . . . Actions | -11 -10 -10 -10 -9 -8 -7 -7 -6 -6 -6 -6 -5 -5 --------- Run | Yrd Mat Min Exi Min Mat Fac Gar Fac Low Low Dat Pro Fac Total 8765 | 58 488 537 434 404 760 90 1056 1623 820 816 100 843 736 Wait 1226 | 1 135 39 92 41 126 13 160 409 33 22 . 21 134 Move 6811 | 43 320 489 327 350 535 73 768 1072 758 769 91 718 498 Hop . | . . . . . . . . . . . . . . Pick Up 65 | 6 9 1 4 1 12 2 5 9 4 . . 8 4 Fast Attach 59 | 5 1 1 . 2 10 . 2 8 4 2 3 7 14 Attach 17 | 1 . . . . 4 2 2 1 . . 1 4 2 Detach 15 | . . . . 1 7 . . 1 1 . 1 2 2 Swap 94 | 2 . . 4 3 9 . 24 18 11 4 . 11 8 Drop 83 | . 6 1 3 3 14 . 12 12 5 1 3 13 10 Fire 278 | . 13 3 . 1 36 . 51 67 4 15 . 29 59 Melee 58 | . . . 4 . 4 . 15 12 . 3 1 16 3 Ram . | . . . . . . . . . . . . . . Kick 12 | . 4 3 . 2 3 . . . . . . . . Crush 13 | . . . . . . . . 11 . . . . 2 Escape Stasis 8 | . . . . . . . 8 . . . . . . Rewire 26 | . . . . . . . 9 3 . . . 14 . Trap . | . . . . . . . . . . . . . . Miscellaneous . | . . . . . . . . . . . . . . Route ------- -11/Scrapyard -10/Materials -10/Mines (discovered 3 exits: [*Mat x2] / *Exi) -10/Exiles -9/Mines -8/Materials (discovered 2 exits: *Fac x2) -7/Factory -7/Garrison (discovered 3 exits: *Fac x3) -6/Factory (discovered 2 exits: *Low x2) -6/Lower Caves -6/Lower Caves (discovered 2 exits: *Fac / *Dat) -6/Data Miner -5/Proximity Caves -5/Factory History --------- Turn | Location | Event 3 | -11/Scrapyard | Discovered new exit (range 15) 68 | -11/Scrapyard | Entered Materials 207 | -10/Materials | Central database locked down 301 | -10/Materials | Build established: Mutant 388 | -10/Materials | Discovered new exit (range 5) 642 | -10/Materials | Entered Mines 673 | -10/Mines | Met a Derelict bent on vengeance 718 | -10/Mines | Received a Rocket Launcher from a helpful Derelict 733 | -10/Mines | Deemed a non-threat by the Exiles lab entrance 733 | -10/Mines | Discovered new exit (range 5) 779 | -10/Mines | Discovered new exit (range 11) 886 | -10/Mines | Assisted by bots powering up and referring to "LRC-V3" 942 | -10/Mines | Learned 4 Materials zone layouts 1066 | -10/Mines | Discovered new exit (range 8) 1283 | -10/Mines | Entered Exiles 1283 | -10/Exiles | Accompanied by 3 allies 1319 | -10/Exiles | Met 8R-AWN 1337 | -10/Exiles | Met EX-HEX 1459 | -10/Exiles | Met EX-DEC 1495 | -10/Exiles | Learned location of Zion (-7) 1522 | -10/Exiles | Met EX-BIN 1538 | -10/Exiles | Aligned with FarCom system 1539 | -10/Exiles | Given EX-Vault access code 1571 | -10/Exiles | Opened EX-Vault 1579 | -10/Exiles | Found Field Lobotomy Kit 1607 | -10/Exiles | Warned to stay clear of 0b10 Research branches 1757 | -10/Exiles | Discovered new exit (range 10) 1785 | -10/Exiles | Left Exiles lab with Field Lobotomy Kit 1785 | -10/Exiles | Entered Mines 1785 | -9/Mines | Accompanied by 3 allies 1832 | -9/Mines | Learned 2 Materials zone layouts 2125 | -9/Mines | Found a damaged Exp. Sensor Array with a note attached 2130 | -9/Mines | Found Prototype Device 2169 | -9/Mines | Discovered new exit (range 9) 2173 | -9/Mines | Learned location of Storage (-9) 2203 | -9/Mines | Found the Drone Emporium 2209 | -9/Mines | Found Prototype Device 2209 | -9/Mines | Identified Splice Drone Bay 2262 | -9/Mines | Entered Materials 2262 | -8/Materials | Accompanied by 3 allies 2262 | -8/Materials | Evolved 4 slots: Propulsion x1, Utility x2, Weapon x1 2263 | -8/Materials | Identified exit to Factory 2731 | -8/Materials | Identified exit to Garrison 2744 | -8/Materials | Garrison activated, responded to threat 2750 | -8/Materials | Build established: Skirmisher 2932 | -8/Materials | Central database locked down 3062 | -8/Materials | First assault squad dispatched 3321 | -8/Materials | Entered Factory 3321 | -7/Factory | Evolved 2 slots: Propulsion x1, Utility x1 3417 | -7/Factory | Identified exit to Garrison 3420 | -7/Factory | Entered Garrison 3438 | -7/Garrison | Triggered checkpoint 3579 | -7/Garrison | Garrison Relay disabled 3626 | -7/Garrison | Build established: Scavenger-Tank 3727 | -7/Garrison | Triggered checkpoint 3728 | -7/Garrison | Triggered checkpoint 3826 | -7/Garrison | Triggered checkpoint 3840 | -7/Garrison | Discovered new exit (range 14) 3859 | -7/Garrison | Installed Relay Interface Framework 3908 | -7/Garrison | Triggered checkpoint 3944 | -7/Garrison | Triggered checkpoint 4276 | -7/Garrison | Discovered new exit (range 8) 4650 | -7/Garrison | Triggered checkpoint 4705 | -7/Garrison | Build established: Tank 4747 | -7/Garrison | Discovered new exit (range 10) 4767 | -7/Garrison | Entered Factory 4767 | -6/Factory | Evolved 2 slots: Utility x2 5093 | -6/Factory | Build established: Scavenger-Tank 5248 | -6/Factory | Garrison activated, responded to threat 5394 | -6/Factory | Garrison activated, responded to threat 6034 | -6/Factory | Fabricated L-41 Fighter (x3) 6075 | -6/Factory | Identified exit to Lower Caves 6093 | -6/Factory | Assembled infested ambush trap array 6104 | -6/Factory | Garrison activated, responded to threat 6145 | -6/Factory | Lost 3 allies 6167 | -6/Factory | First assault squad dispatched 7180 | -6/Factory | Entered Lower Caves 7677 | -6/Lower Caves | Learned Factory security intel 8100 | -6/Lower Caves | Spotted B-75 Beast 8118 | -6/Lower Caves | Destroyed B-75 Beast 8450 | -6/Lower Caves | Discovered new exit (range 3) 8466 | -6/Lower Caves | Entered another Lower Caves area 8471 | -6/Lower Caves | Learned Factory security intel 8484 | -6/Lower Caves | Discovered new exit (range 9) 8560 | -6/Lower Caves | Attracted the attention of an 0b10 checkpoint 8637 | -6/Lower Caves | Build established: Tank 8767 | -6/Lower Caves | Learned Factory stockpile data 9086 | -6/Lower Caves | Learned Factory garrison access intel 9232 | -6/Lower Caves | Discovered new exit (range 13) 9719 | -6/Lower Caves | Found Alien Artifact 9719 | -6/Lower Caves | Identified Core Expander 9719 | -6/Lower Caves | Installed Core Expander, added new Weapon slot 9776 | -6/Lower Caves | Entered Data Miner 9776 | -6/Data Miner | Discovered new exit (range 6) 9808 | -6/Data Miner | Met Data Miner 9860 | -6/Data Miner | Learned location of Section 7 (-3) 9860 | -6/Data Miner | Acquired the access code to Warlord's prototype stash 9883 | -6/Data Miner | Received God Mode back door access code from Data Miner 9931 | -6/Data Miner | Entered Proximity Caves 10645 | -5/Proximity Caves | Attracted the attention of an 0b10 outpost 10904 | -5/Proximity Caves | Discovered new exit (range 16) 11003 | -5/Proximity Caves | Found Mni. Smartbomb Launcher 11006 | -5/Proximity Caves | Found Prototype Launcher 11006 | -5/Proximity Caves | Identified Scatter Rocket Array 11011 | -5/Proximity Caves | Found Mni. Smartbomb Launcher 11038 | -5/Proximity Caves | Found Prototype Launcher 11038 | -5/Proximity Caves | Identified Gui. EMP Blaster 11278 | -5/Proximity Caves | System corruption reached 10% 11289 | -5/Proximity Caves | Entered Factory 11289 | -5/Factory | Accompanied by 3 allies 11289 | -5/Factory | Evolved 2 slots: Power x1, Utility x1 11292 | -5/Factory | Loaded intel: 4 garrison access locations 11349 | -5/Factory | Incoming investigation squad redirected 11383 | -5/Factory | Incoming investigation squad redirected 11428 | -5/Factory | Fabricated Enh. Hardcell Cannon (x2) 11595 | -5/Factory | Build established: Scavenger-Tank 11888 | -5/Factory | Fabricated Hyp. Railgun (x2) 12117 | -5/Factory | Garrison activated, responded to threat 12156 | -5/Factory | Cargo convoy interrupted 12189 | -5/Factory | First assault squad dispatched 12199 | -5/Factory | Lost 3 allies 12207 | -5/Factory | Found Prototype Device 12207 | -5/Factory | Identified Exp. Thermal Defense Suite 12262 | -5/Factory | Spotted B-75 Beast 12318 | -5/Factory | Allies destroyed B-75 Beast 12382 | -5/Factory | Incoming assault squad redirected 12433 | -5/Factory | Core integrity fell below 50% 12447 | -5/Factory | Core integrity fell below 20% 12454 | -5/Factory | Core destroyed Last Messages --------------- 12416_ HV Slug penetrates Wall. 12416_ HV Slug penetrates Door. 12416_ HV Slug penetrates Wall. 12416_ K-01 Serf collects debris. 12423_ Acquired 29 matter. 12423_ K-01 Serf collects debris. 12424_ U-05 Engineer builds a Wall. 12426_ K-01 Serf collects debris. 12427_ ALERT: Suspicious intruders detected, dispatching Specialist reinforcements to area. 12427_ K-01 Serf collects debris. 12431_ Acquired System Restoration Module. 12432_ ALERT: Hostile activity reported, dispatching reinforcements to area. 12432_ U-05 Engineer builds a Wall. 12434_ K-01 Serf cleans the Matter Pump. 12435_ K-01 Serf collects debris. 12451_ System Restoration Module purges 1% system corruption (4%). Map ----- +----------------------------------------------------+ | ??????????????????????????????# ???####?????###= | | ??????????????????????????????# ##?# ####### != | | ?????????????????????????????## #### ## ####### | | ????????????????????????????## ! !!! =]% | | ????????????????????????????? !!! ! | | ??????????????????????????????# !!! *! | | ????????????????????????????[??# ## | | ????????????????????????????????# *## | | ????????????????????????????????# ## | | ????????????????????????????????# #? | | ????????????????????????????????# "%% #? | | ?????????????????????????? ????# "% #? | | ????????????????????????? " ?"?# = "" #? | | ????????????????????????" " ?"?# /[%* #? | | ??????????????????????? " " T"?# "" ## | | ??????????????????????? " " "" # "%" % | | ??????????????????????? " " "" # """ % | | ??????????????????????? " " %# | | ??????????????????????? " " #[ """ | | ????????????????????#?" " " ! # = """ | | ????????????????????# " " " #[ """ | | ????????????????????# # ###/### | | ??????????=?????????# ] ! = """ #? ?? | | ????????????????????# ! +^^ """ #?????? | | ???????????????????############## ! """ #*????? | | ???????????????????# @ ## ^ #?????? | | ???????????????????# # #?????? | | ???????????????????# # ""T"" #?????? | | ???????????????????# """ """ + """"" #?????? | | ???????????????????# """ """ # #?????? | | ???????????????????# """ """ # #?????? | | ???????????????????# #####""T"" ##?????? | | ???????????????????#############????"""""##??????? | | ?????????????????????????????????????####????????? | | | | | | | | | | | | | | | | | | | | | | | | | | | | | | | | | +----------------------------------------------------+ Best States ------------- Heat Dissipation 59 Coolant Potential 100 Energy Generation 33 Energy Capacity 710 Matter Stores 300 Matter Capacity 300 Sight Range 16 Terrain Scan Density 210 Armor Coverage 600 Resistance: TH 30 Propulsion Shielding 66 Weapon Shielding 33 Evasion (%) 55 Targeting Accuracy 8 Recoil Reduction 4 Offensive Hacking 12 Relay Coupler Types 1 Relay Coupler Value 26 Authchip Count 1 Item Schematics ----------------- Combat Drone Bay | -6/Data Miner | Free Lgt. Regenerative Plating | -6/Data Miner | Free Cld. Gravmag System | -6/Data Miner | Free Adv. EM Disruption Field | -6/Data Miner | Free Thunder Hammer | -6/Data Miner | Free Impulse Thruster | -6/Data Miner | Free Adv. Focal Shield | -6/Data Miner | Free Hvy. Disruptor Cannon | -6/Data Miner | Free Imp. Heavy Treads | -5/Factory | Scanalyzed Robot Schematics ------------------ A-15 Conveyor | -6/Data Miner | Free S-27 Virus | -6/Data Miner | Free B-60 Warrior | -6/Data Miner | Free G-50 Soldier | -6/Data Miner | Free H-66 Slayer | -6/Data Miner | Free R-10 Processor | -6/Data Miner | Free Fabricated ------------ L-41 Fighter | x3 | -6/Factory | Preloaded Enh. Hardcell Cannon | x2 | -5/Factory | Preloaded Hyp. Railgun | x2 | -5/Factory | Preloaded Repaired ---------- Nothing Studied --------- Carbon-fiber Leg | -8/Materials | Hacked Rocket Launcher | -7/Factory | Hacked Imp. Heavy Treads | -5/Factory | Hacked Alien Tech Used ----------------- Core Expander Achievements -------------- None Challenges ------------ None Player 2 | -11 -10 -10 -10 -9 -8 -7 -7 -6 -6 -6 -6 -5 -5 ---------- Run | Yrd Mat Min Exi Min Mat Fac Gar Fac Low Low Dat Pro Fac Slots Evolved 10 | . . . . 4 2 . 2 . . . . 2 . Power . | . . . . . . . . . . . . . . Propulsion 2 | . . . . . 1 . . . . . . 1 . Utility 5 | . . . . 2 1 . 1 . . . . 1 . Weapon 3 | . . . . 2 . . 1 . . . . . . Parts Attached 134 | . 15 . 1 . 19 2 15 48 2 . . 7 25 Parts Lost 43 | . . . . . . . . 21 . . . . 22 Damage Taken 8187 | . 26 6 . . 492 . 439 3288 53 . . 239 3644 Core 1220 | . . . . . 62 . 53 245 20 . . . 840 Player 2/Cogmind (%) 73 | . . . . . 50 . 40 90 42 . . . 83 Absorbed by Shields 10 | . . . . . . . . 10 . . . . . Damage Inflicted 19661 | . 168 . . . 1434 . 1761 6566 518 214 . 1799 7201 Player 2/Cogmind (%) 57 | . 45 . . . 39 . 42 61 71 28 . 50 72 Combat Hostiles Destroyed 114 | . 1 . . . 14 . 11 38 5 3 . 17 25 Player 2/Cogmind (%) 57 | . 25 . . . 56 . 39 64 71 60 . 77 58 Game ------ Seed MomentumAntigravSpiker Manual? 0 Play Time 01:21:51 Cumulative 2117.3 hours Start 2026.02.06 @ 02:52:38 End 2026.02.06 @ 04:17:44 Sessions 2 Manual Loads 0 Difficulty Rogue Special Mode AFD2020/Player2 Game No. 1353 Rogue 1349 Adventurer 4 Explorer 0 Win Type - Total 294 Types 222/13/22/11/3/1/4/10/5/3 Lore% 98 Gallery% 96 Achievement% 88 Wizard Run 0 Options --------- Layout 2 ASCII 1 Keyboard 1 Movement Vi Keybinds 0 Fullscreen 0 Font 24/Terminus Map View 59x48 Zoom Use 0% Tactical HUD 1 Map Filters NONE Filters NONE Steam 1 RUN: 6d539f76-ed78-4b2c-9748-6099c8786ac7